bitfinex-derivatives/quotes_ETHF0:USTF0_20241104
["timestamp","ask_amount","ask_price","bid_price","bid_amount"]
[1730732322023,4.22895,2449.6,2449.0,3.7916]
[1730732322024,1.02122,2449.4,2449.0,3.7916]
[1730732322317,0.40853,2449.2,2449.1,0.40851]
[1730732322719,0.40851,2449.3,2449.2,0.4085]
[1730732323030,0.40848,2449.5,2449.4,0.40847]
[1730732323531,3.2078,2449.6,2449.3,0.40848]
[1730732323532,0.40849,2449.4,2449.3,0.40848]
[1730732323921,3.2078,2449.6,2449.1,1.02133]
[1730732324221,3.61627,2449.6,2449.5,0.40847]
[1730732324729,3.61627,2449.6,2449.4,0.40847]
[1730732324730,0.40848,2449.5,2449.4,0.40847]
[1730732324929,3.61626,2449.6,2449.5,0.40847]
[1730732325126,3.2078,2449.6,2449.1,1.02133]
[1730732325431,3.2078,2449.6,2449.0,3.7916]
[1730732325627,0.40851,2449.3,2449.2,0.40851]
[1730732326522,3.2078,2449.6,2449.0,3.7916]
[1730732326828,1.02118,2449.5,2449.1,0.40852]
[1730732327031,0.40852,2449.2,2449.1,0.40852]
[1730732327526,0.40853,2449.1,2449.0,4.20014]
[1730732328326,1.02122,2449.4,2449.1,0.40852]
[1730732328327,0.40853,2449.2,2449.1,0.40852]
[1730732328927,0.40853,2449.1,2449.0,0.99235]
[1730732329127,0.40853,2449.1,2449.0,0.5838]
[1730732329431,0.40858,2448.9,2448.8,0.40857]
[1730732329624,1.02134,2449.1,2448.5,1.02156]
[1730732329625,1.02134,2449.1,2448.5,1.1547]
[1730732329827,0.4086,2448.8,2448.7,0.40859]
[1730732330027,4.22918,2449.0,2448.7,0.19358315]
[1730732330227,0.40861,2448.7,2448.6,0.4086]
[1730732330527,0.40861,2448.7,2448.6,1.1656858]
[1730732330826,3.2078,2449.0,2448.6,1.1656858]
[1730732330827,3.2078,2449.0,2448.6,0.75708465]
[1730732331026,0.4086,2448.8,2448.7,0.40859]
[1730732331234,0.40862,2448.6,2448.5,1.56332]
[1730732331532,0.40861,2448.7,2448.6,0.4086]
[1730732331735,0.40861,2448.7,2448.6,1.16593611]
[1730732332128,0.40861,2448.7,2448.6,1.16616401]
[1730732332933,40.8,2448.8,2448.7,0.4086]
[1730732333134,40.8,2448.8,2448.7,1.16627749]
[1730732333135,41.20858,2448.8,2448.7,1.16627749]
[1730732333439,41.20858,2448.8,2448.2,6.31559331]
[1730732333440,1.02155,2448.6,2448.1,3.2078]
[1730732333738,44.884,2448.8,2447.7,6.54230259]
[1730732333739,3.61646,2448.4,2448.3,0.40867]
[1730732333924,3.8149,2448.7,2448.3,0.40867]
[1730732334235,0.40865,2448.4,2448.3,0.40867]
[1730732334536,0.40865,2448.4,2448.3,0.19384887]
[1730732334732,1.02155,2448.6,2448.0,0.5999]
[1730732334930,0.40868,2448.3,2448.2,0.40867]
[1730732335135,3.2078,2448.4,2448.1,0.40868]
[1730732335325,0.40868,2448.3,2448.2,0.40867]
[1730732335527,0.40863,2448.6,2448.5,0.40862]
[1730732335732,3.2078,2448.7,2448.6,0.40862]
[1730732335733,3.61642,2448.7,2448.6,0.40862]
[1730732335939,3.2078,2448.7,2448.6,0.40862]
[1730732336128,0.40858,2448.9,2448.8,0.40857]
[1730732336327,0.40858,2448.9,2448.8,0.60243266]
[1730732336527,3.2078,2449.1,2448.9,0.40856]
[1730732336528,40.8,2449.0,2448.9,0.40856]
[1730732336839,3.2078,2449.1,2449.0,0.40855]
[1730732336840,3.61635,2449.1,2449.0,0.40855]
[1730732337138,3.2078,2449.1,2449.0,0.40855]
[1730732337323,3.2078,2449.1,2448.7,0.6267]
[1730732337324,3.61633,2449.1,2448.7,0.6267]
[1730732337523,0.40856,2449.0,2448.9,0.40855]
[1730732337728,3.2078,2449.1,2449.0,0.40855]
[1730732337729,3.61635,2449.1,2449.0,0.40855]
[1730732337939,3.61633,2449.1,2449.0,0.40855]
[1730732338137,3.61633,2449.1,2449.0,0.60249988]
[1730732338531,3.61633,2449.1,2449.0,0.40855]
[1730732338735,3.61633,2449.1,2449.0,0.19404408]
[1730732339431,7.69953,2449.1,2449.0,0.19404408]
[1730732339939,0.40857,2448.9,2448.8,0.40857]
[1730732340142,0.40857,2448.9,2448.8,1.16769457]
[1730732340438,0.40857,2448.9,2448.8,0.75912457]
[1730732340625,0.40857,2448.9,2448.8,1.66359663]
[1730732340829,0.40857,2448.9,2448.8,0.75912457]
[1730732341128,0.40857,2448.9,2448.8,0.40858]
[1730732341329,0.40857,2448.9,2448.8,1.16814227]
[1730732341730,0.40857,2448.9,2448.8,1.66432536]
[1730732341930,0.40857,2448.9,2448.8,0.75956227]
[1730732342334,4.49177,2448.9,2448.8,0.75956227]
[1730732342543,5.54279338,2448.9,2448.8,0.19426261]
[1730732342733,4.49177,2448.9,2448.8,0.19426261]
[1730732343129,0.40863,2448.5,2448.4,1.61034]
[1730732343334,0.40863,2448.5,2448.4,2.37054961]
[1730732343540,0.40863,2448.5,2448.4,3.27559818]
[1730732343745,0.40863,2448.5,2448.4,3.73295786]
[1730732343935,0.40863,2448.5,2448.4,2.82790929]
[1730732344235,0.40863,2448.5,2448.4,4.14170061]
[1730732344436,0.40863,2448.5,2448.4,2.82790929]
[1730732344840,0.40863,2448.5,2448.4,3.23655929]
[1730732345135,0.40863,2448.5,2448.4,1.62620929]
[1730732345636,0.40863,2448.5,2448.4,2.03485929]
[1730732346246,40.8,2448.5,2448.4,2.03485929]
[1730732346433,4.26572569,2448.7,2448.4,6.11885929]
[1730732346637,0.4086,2448.8,2448.7,0.40859]
[1730732346839,0.4086,2448.8,2448.7,1.16879961]
[1730732347137,1.05792569,2449.0,2448.7,0.76020961]
[1730732347138,40.8,2448.9,2448.7,0.76020961]
[1730732347337,0.40858,2448.8,2448.7,1.0144]
[1730732347543,0.40858,2448.8,2448.7,1.77404501]
[1730732347738,0.40858,2448.8,2448.7,2.23144469]
[1730732348042,0.40858,2448.8,2448.7,2.64004469]
[1730732348236,0.40858,2448.8,2448.7,2.4457475]
[1730732348438,0.40858,2448.8,2448.7,2.64002768]
[1730732348940,40.8,2448.9,2448.7,2.23142768]
[1730732349240,41.20857,2448.9,2448.8,1.16821646]
[1730732349845,41.20857,2448.9,2448.8,2.03421614]
[1730732351040,3.2078,2449.1,2449.0,0.40855]
[1730732351344,42.26643569,2449.3,2449.2,0.40852]
[1730732351641,41.20851,2449.3,2449.2,0.60280018]
[1730732351942,41.20851,2449.3,2449.2,1.06027986]
[1730732352342,4.26572569,2449.4,2449.3,0.4085]
[1730732352540,3.2078,2449.4,2449.3,1.79708845]
[1730732352839,44.0078,2449.4,2449.3,2.66308813]
[1730732353239,44.41628,2449.4,2449.3,2.66308813]
[1730732353542,44.0078,2449.4,2449.3,2.66308813]
[1730732354040,40.8,2449.4,2449.3,2.66308813]
[1730732354246,4.79793528,2449.8,2449.7,0.40843]
[1730732354247,4.26572569,2449.8,2449.7,0.40843]
[1730732354552,4.26572569,2449.8,2449.7,0.97375868]
[1730732354553,3.2078,2449.8,2449.7,0.97375868]
[1730732354743,3.2078,2449.8,2449.7,1.16797355]
[1730732354944,3.2078,2449.8,2449.7,2.03397323]
[1730732355355,3.2078,2449.8,2449.7,1.27442968]
[1730732355542,3.2078,2449.8,2449.7,2.03400546]
[1730732357446,3.61622,2449.8,2449.7,2.03400546]
[1730732357648,3.2078,2449.8,2449.7,2.03400546]
[1730732358650,40.8,2449.9,2449.7,1.62557546]
[1730732358845,40.8,2449.9,2449.6,0.6167]
[1730732358846,40.8,2449.9,2449.8,2.03399546]
[1730732359146,41.2084,2449.9,2449.8,2.03399546]
[1730732359548,40.8,2449.9,2449.8,2.03399546]
[1730732359754,3.2078,2450.1,2449.8,6.11559546]
[1730732359946,0.40834,2450.3,2450.2,0.40835]
[1730732360151,0.40834,2450.3,2450.2,0.60263237]
[1730732360342,40.8,2450.3,2450.2,4.68423237]
[1730732360551,40.8,2450.3,2450.2,5.24890234]
[1730732361153,40.8,2450.3,2450.2,6.11490202]
[1730732361355,0.40829,2450.6,2450.2,6.11490202]
[1730732361649,0.4083,2450.6,2450.5,0.40829]
[1730732361842,41.2083,2450.6,2450.5,0.40829]
[1730732362043,40.8,2450.6,2450.5,0.86599968]
[1730732362251,45.28908,2450.6,2450.5,0.86599968]
[1730732363054,41.20828,2450.6,2450.5,0.86599968]
[1730732363347,41.20828,2450.6,2450.5,1.27429968]
[1730732363542,41.20828,2450.6,2450.5,0.86599968]
[1730732363744,41.20828,2450.6,2450.5,1.27429968]
[1730732363953,41.20828,2450.6,2450.5,0.86599968]
[1730732365056,41.20828,2450.6,2450.5,1.27429968]
[1730732365551,41.20828,2450.6,2450.5,0.86599968]
[1730732367843,40.8,2450.6,2450.5,1.27429968]
[1730732368150,41.20828,2450.6,2450.5,1.27429968]
[1730732368546,41.20828,2450.6,2450.5,0.86599968]
[1730732368752,40.8,2450.6,2450.5,1.27429968]
[1730732369054,40.8,2450.6,2450.5,5.35509968]
[1730732369254,40.8,2450.6,2450.5,1.27429968]
[1730732369553,3.2078,2451.2,2450.7,0.40827]
[1730732369751,0.40821,2451.1,2451.0,0.4082]
[1730732370059,0.4082,2451.1,2451.0,1.27420968]
[1730732370247,0.4082,2451.1,2451.0,0.86599968]
[1730732370646,41.2082,2451.1,2451.0,0.86599968]
[1730732371358,41.2082,2451.1,2451.0,1.27421968]
[1730732371557,41.2082,2451.1,2451.0,0.86599968]
[1730732372057,41.2082,2451.1,2451.0,1.27421968]
[1730732373550,40.8,2451.1,2451.0,1.27421968]
[1730732374549,3.2078,2451.2,2451.0,4.94599968]
[1730732374749,0.40816,2451.4,2451.0,4.94599968]
[1730732374750,0.40816,2451.4,2451.0,0.86599968]
[1730732374961,3.61594,2451.5,2451.4,0.40815]
[1730732375153,44.41594,2451.5,2451.4,0.40815]
[1730732375351,44.0078,2451.5,2451.2,0.86599968]
[1730732375547,0.40816,2451.4,2451.3,0.40815]
[1730732375754,44.0078,2451.5,2451.2,0.86599968]
[1730732375947,0.40816,2451.4,2451.3,0.98635]
[1730732376268,0.40816,2451.4,2451.3,1.85234968]
[1730732376559,0.40815,2451.4,2451.3,1.85234968]
[1730732377060,44.0078,2451.5,2451.4,0.40815]
[1730732377251,40.8,2451.5,2451.4,1.60235]
[1730732377453,0.40808,2451.8,2451.7,0.40808]
[1730732377849,41.20808,2451.8,2451.7,0.40808]
[1730732378049,41.20808,2451.8,2451.7,1.27407968]
[1730732379457,40.8,2451.8,2451.7,1.27407968]
[1730732379652,41.20808,2451.8,2451.7,1.27407968]
[1730732380656,40.8,2451.8,2451.7,1.27407968]
[1730732382060,41.20808,2451.8,2451.7,1.27407968]
[1730732382262,40.8,2451.8,2451.7,1.27407968]
[1730732382564,41.20808,2451.8,2451.7,1.27407968]
[1730732383261,40.8,2451.8,2451.7,1.27407968]
[1730732383563,40.8,2451.8,2451.7,5.35247968]
[1730732383856,0.40804,2452.1,2452.0,0.40805]
[1730732384062,3.7887,2452.3,2451.8,0.6192]
[1730732384258,0.40803,2452.1,2452.0,0.86599968]
[1730732385172,0.40803,2452.1,2452.0,1.27404968]
[1730732385751,41.20803,2452.1,2452.0,0.86599968]
[1730732385957,41.20803,2452.1,2452.0,1.27404968]
[1730732386852,41.20803,2452.1,2452.0,0.86599968]
[1730732389663,48.06240557,2452.1,2451.5,3.2078]
[1730732389865,0.40812,2451.6,2451.5,3.2078]
[1730732391763,4.48732,2451.6,2451.5,3.2078]
[1730732392159,0.40812,2451.6,2451.5,3.2078]
[1730732392661,4.48732,2451.6,2451.5,3.2078]
[1730732392867,10.47100557,2451.6,2451.1,0.624]
[1730732393058,0.40818,2451.2,2451.1,0.624]
[1730732393458,41.20818,2451.2,2451.1,0.624]
[1730732394263,41.20818,2451.2,2451.1,1.0322]
[1730732394764,41.20818,2451.2,2451.1,0.624]
[1730732398065,41.20818,2451.2,2451.1,1.0322]
[1730732398262,41.20818,2451.2,2451.1,0.624]
[1730732399272,40.8,2451.2,2450.7,0.598]
[1730732399477,40.8,2451.2,2451.1,0.4082]
[1730732399774,0.40818,2451.3,2451.2,0.40817]
[1730732399966,3.61598,2451.3,2451.2,0.40817]
[1730732400174,3.2078,2451.3,2451.2,0.40817]
[1730732400366,3.2078,2451.3,2451.2,0.96988105]
[1730732400571,3.61597,2451.3,2451.2,0.56171105]
[1730732400969,3.61597,2451.3,2451.1,0.40819]
[1730732400970,41.20817,2451.3,2451.0,0.6131]
[1730732401174,0.40818,2451.2,2451.1,0.56171833]
[1730732402071,0.40823,2450.9,2450.8,0.5975]
[1730732402266,0.40828,2450.6,2450.5,3.2078]
[1730732402468,3.61608,2450.6,2450.5,0.56219914]
[1730732402774,11.49332557,2450.6,2450.2,0.40834]
[1730732402974,0.40836,2450.2,2450.1,0.40836]
[1730732403183,0.40835,2450.3,2450.1,0.40836]
[1730732403474,40.8,2450.2,2450.1,0.40836]
[1730732403668,40.8,2450.2,2450.1,0.96616484]
[1730732403870,4.77414085,2451.2,2450.1,0.96616484]
[1730732403871,3.2078,2450.9,2450.1,8.93341035]
[1730732404075,3.2078,2450.9,2450.6,0.40828]
[1730732404076,0.40826,2450.8,2450.6,0.40828]
[1730732404370,4.2282,2451.4,2450.7,0.75157698]
[1730732404574,3.61596,2451.4,2451.3,0.40816]
[1730732404767,3.2078,2451.4,2451.3,0.40816]
[1730732404968,0.40814,2451.5,2451.3,0.40816]
[1730732404969,40.8,2451.5,2451.4,0.40815]
[1730732405278,0.40815,2451.4,2451.3,0.40816]
[1730732405572,41.20814,2451.5,2451.4,0.40815]
[1730732405967,40.8,2451.5,2451.4,0.40815]
[1730732406377,3.2078,2451.7,2451.2,2.18836]
[1730732406572,3.2078,2451.7,2451.3,0.7520373]
[1730732406765,3.2078,2451.7,2451.2,2.18836]
[1730732406766,0.40812,2451.6,2451.5,0.40812]
[1730732406970,0.40812,2451.6,2451.5,1.16013302]
[1730732407170,3.2078,2451.7,2451.6,0.40812]
[1730732407685,3.2078,2451.7,2451.3,3.18400557]
[1730732407882,3.2078,2451.7,2451.4,0.75206218]
[1730732408075,3.61591,2451.7,2451.6,0.40812]
[1730732408266,3.61591,2451.7,2451.6,0.19394934]
[1730732408468,3.2078,2451.7,2451.6,0.40812]
[1730732408773,3.2078,2451.7,2451.6,5.23949396]
[1730732409082,3.6159,2451.7,2451.6,0.75217396]
[1730732409266,3.6159,2451.7,2451.6,5.23947851]
[1730732409465,3.2078,2451.7,2451.6,1.16027851]
[1730732409868,3.2078,2451.7,2451.6,0.60207104]
[1730732410074,3.2078,2451.7,2451.6,1.16030919]
[1730732410484,4.20410557,2452.1,2451.6,0.75218919]
[1730732410672,3.2078,2452.2,2451.8,3.18400557]
[1730732410872,3.2078,2452.2,2451.9,1.99014191]
[1730732411074,0.40805,2452.1,2452.0,0.60198104]
[1730732411468,44.41583,2452.2,2452.1,0.40803]
[1730732411875,44.0078,2452.2,2451.9,1.2379]
[1730732412071,44.41582,2452.2,2452.1,0.40803]
[1730732412282,44.0078,2452.2,2452.1,0.60204544]
[1730732412484,44.0078,2452.2,2452.1,1.16032977]
[1730732412681,44.41582,2452.2,2452.1,1.16032977]
[1730732413276,44.41582,2452.2,2452.1,0.60204544]
[1730732413475,44.41582,2452.2,2452.1,0.19401544]
[1730732414184,44.41582,2452.2,2452.1,0.60204544]
[1730732414380,44.41582,2452.2,2452.1,0.19401544]
[1730732414575,44.0078,2452.2,2452.1,0.19398739]
[1730732414776,44.41582,2452.2,2452.1,0.19398739]
[1730732415390,48.49422,2452.2,2452.1,0.19398739]
[1730732415585,48.49422,2452.2,2451.9,1.2379]
[1730732415586,0.40805,2452.0,2451.9,1.2379]
[1730732415777,0.40805,2452.0,2451.9,0.19401089]
[1730732415987,0.40805,2452.0,2451.6,0.5915]
[1730732415988,0.4081,2451.7,2451.6,0.5915]
[1730732416186,0.4081,2451.7,2451.6,0.1940305]
[1730732416384,0.40812,2451.6,2451.5,0.589]
[1730732416582,3.2078,2451.6,2451.3,0.5915]
[1730732416778,0.40815,2451.4,2451.3,0.5915]
[1730732417278,40.8,2451.4,2451.3,0.99967]
[1730732417488,40.8,2451.4,2451.3,5.27295853]
[1730732417986,40.8,2451.4,2451.3,1.75232062]
[1730732418290,41.20815,2451.4,2451.3,0.78558853]
[1730732418591,41.20815,2451.4,2451.1,0.589]
[1730732418592,0.40818,2451.2,2451.1,0.589]
[1730732418778,0.40818,2451.2,2451.1,0.78311061]
[1730732418980,3.2078,2451.3,2451.0,0.5837]
[1730732419290,3.2078,2451.3,2451.1,0.40818]
[1730732419492,0.4082,2451.1,2451.0,0.99191]
[1730732419683,0.4082,2451.2,2451.1,0.4082]
[1730732419884,3.61597,2451.3,2451.2,0.40818]
[1730732420085,3.2078,2451.3,2451.2,0.60224601]
[1730732420483,2.2534,2451.3,2451.2,4.68144601]
[1730732420689,2.2534,2451.3,2451.2,0.60224601]
[1730732420896,2.2534,2451.3,2451.2,4.68144601]
[1730732421087,2.66157,2451.3,2451.2,0.75272376]
[1730732421285,0.40817,2451.3,2451.2,0.75272376]
[1730732421485,4.48737,2451.3,2451.2,0.75272376]
[1730732421790,0.40817,2451.3,2451.2,0.1941103]
[1730732422393,0.40818,2451.2,2451.1,0.4082]
[1730732422584,0.40818,2451.2,2451.1,0.60231335]
[1730732423193,0.40818,2451.2,2451.1,0.19411335]
[1730732423887,0.4082,2451.1,2451.0,0.99191]
[1730732424090,0.4082,2451.1,2451.0,0.77778196]
[1730732425497,0.4082,2451.1,2451.0,0.19408196]
[1730732425788,0.40827,2450.8,2450.7,0.40826]
[1730732425998,0.40827,2450.7,2450.6,3.8043]
[1730732426996,0.40827,2450.7,2450.6,4.21258]
[1730732427200,0.40827,2450.7,2450.6,3.8043]
[1730732427692,0.40827,2450.7,2450.6,3.2078]
[1730732428090,0.40832,2450.4,2450.3,3.2078]
[1730732428292,0.40832,2450.4,2450.3,3.40184463]
[1730732428497,3.18400557,2450.5,2449.9,3.2078]
[1730732428498,4.20477557,2450.5,2449.9,3.2078]
[1730732428801,4.20477557,2450.5,2450.0,0.60242277]
[1730732428802,0.40838,2450.1,2450.0,0.60242277]
[1730732429096,40.8,2450.3,2450.2,0.40834]
[1730732429490,40.8,2450.3,2450.2,0.60231594]
[1730732430494,40.8,2450.3,2450.2,0.40834]
[1730732430495,41.20833,2450.3,2450.2,0.40834]
[1730732430798,40.8,2450.3,2450.2,0.40834]
[1730732431192,40.8,2450.3,2450.0,1.02096]
[1730732431193,0.40831,2450.5,2450.0,1.02096]
[1730732431391,0.40828,2450.7,2450.6,0.40827]
[1730732431897,0.4083,2450.6,2450.5,0.40829]
[1730732432993,0.40826,2450.8,2450.7,0.40825]
[1730732433192,44.41604,2450.9,2450.8,0.40825]
[1730732433584,44.0078,2450.9,2450.4,1.1947]
[1730732433797,0.4083,2450.5,2450.4,1.60301]
[1730732434307,0.40833,2450.4,2450.3,0.40832]
[1730732434589,4.94139967,2450.7,2450.2,3.61613]
[1730732434590,0.40833,2450.3,2450.2,3.61613]
[1730732434799,5.54769967,2450.7,2450.2,3.2078]
[1730732434997,0.6063,2450.7,2450.2,3.2078]
[1730732435293,44.0078,2450.9,2450.2,4.22866]
[1730732435487,0.40827,2450.7,2450.6,0.40827]
[1730732435692,44.0078,2450.9,2450.5,0.40829]
[1730732435693,0.4083,2450.6,2450.5,0.40829]
[1730732436794,0.40831,2450.5,2450.4,0.4083]
[1730732437000,0.40833,2450.4,2450.3,0.40833]
[1730732437197,1.02063,2450.8,2450.2,3.2078]
[1730732437390,3.2078,2450.6,2450.2,3.2078]
[1730732437595,0.40827,2450.7,2450.6,0.40827]
[1730732437792,0.40826,2450.8,2450.7,0.40825]
[1730732437990,44.41604,2450.9,2450.8,0.40825]
[1730732438194,44.41604,2450.9,2450.4,1.02078]
[1730732438195,3.2078,2450.9,2450.4,1.02078]
[1730732438495,3.2078,2450.9,2450.2,4.22867]
[1730732438496,3.2078,2450.9,2450.6,0.6176]
[1730732438691,0.40827,2450.7,2450.6,1.02588]
[1730732439088,0.40827,2450.7,2450.6,0.6176]
[1730732439290,1.02071,2450.6,2450.3,0.40833]
[1730732439494,1.02071,2450.6,2450.2,3.2078]
[1730732439495,3.2078,2450.6,2450.2,3.2078]
[1730732439695,3.2078,2450.9,2450.2,4.22868]
[1730732439895,3.2078,2450.9,2450.2,3.2078]
[1730732439896,40.8,2450.8,2450.2,3.2078]
[1730732440104,40.8,2450.8,2450.3,1.02084]
[1730732440302,40.8,2450.8,2450.5,0.40828]
[1730732440303,0.40829,2450.6,2450.5,0.40828]
[1730732440495,0.40829,2450.6,2450.5,0.40829]
[1730732441106,41.20827,2450.8,2450.7,0.40827]
[1730732441295,40.8,2450.8,2450.4,1.02079]
[1730732441497,40.8,2450.8,2450.7,0.40827]
[1730732441711,3.2078,2450.9,2450.8,0.40825]
[1730732441909,3.61603,2450.9,2450.8,0.40825]
[1730732442203,3.2078,2450.9,2450.8,0.40825]
[1730732442403,3.2078,2450.9,2450.8,4.48825]
[1730732442609,0.4082,2451.2,2450.8,3.61605]
[1730732442811,0.40821,2451.1,2450.8,1.02063]
[1730732442999,3.92071967,2451.3,2450.7,1.02067]
[1730732443302,0.40819,2451.2,2451.1,0.40818]
[1730732443613,3.2078,2451.4,2450.9,1.02059]
[1730732443803,0.4082,2451.2,2451.1,0.40819]
[1730732444014,41.2082,2451.2,2451.1,0.40819]
[1730732444609,41.20818,2451.2,2451.1,0.40819]
[1730732444806,41.2082,2451.2,2451.1,0.4082]
[1730732445105,40.8,2451.2,2451.1,0.4082]
[1730732446008,0.40818,2451.3,2451.2,0.40817]
[1730732446604,3.61596,2451.4,2451.3,0.40817]
[1730732446809,3.2078,2451.4,2451.3,0.40817]
[1730732447113,3.2078,2451.4,2451.3,4.48737]
[1730732448203,3.61587,2451.9,2451.8,0.40807]
[1730732448403,3.2078,2451.9,2451.8,0.40807]
[1730732449004,3.2078,2451.9,2451.8,4.48647]
[1730732449399,3.61579,2452.4,2452.3,0.408]
[1730732449605,3.2078,2452.4,2452.3,0.408]
[1730732449805,0.40802,2452.2,2452.1,0.40802]
[1730732450314,0.40801,2452.3,2452.2,0.408]
[1730732450511,3.61578,2452.4,2452.3,0.408]
[1730732450709,3.2078,2452.4,2452.3,0.408]
[1730732451016,44.41578,2452.4,2452.3,0.408]
[1730732451212,44.0078,2452.4,2452.3,4.4856]
[1730732451602,44.0078,2452.4,2451.9,5.0152]
[1730732451901,0.40805,2452.0,2451.9,1.2127]
[1730732452113,0.40805,2452.0,2451.9,1.62077]
[1730732452305,0.40811,2451.7,2451.5,0.5947]
[1730732452507,0.40815,2451.4,2451.3,0.5911]
[1730732452710,0.40815,2451.4,2450.8,4.27229028]
[1730732452711,1.02046,2451.2,2450.8,3.2078]
[1730732452913,1.02046,2451.2,2450.6,0.5911]
[1730732452914,3.2078,2451.1,2450.6,0.5911]
[1730732453117,40.8,2451.0,2450.6,3.7989]
[1730732453318,40.8,2451.0,2450.9,0.40823]
[1730732453520,40.8,2451.0,2450.9,3.61603]
[1730732453717,40.8,2451.0,2450.9,4.68193546]
[1730732453918,3.8089,2451.6,2450.9,4.27370546]
[1730732454129,0.40817,2451.3,2451.2,0.40817]
[1730732454418,40.8,2451.3,2451.2,0.40818]
[1730732454612,41.20817,2451.3,2451.2,0.40818]
[1730732454809,40.8,2451.3,2451.2,0.40818]
[1730732455019,41.20817,2451.3,2451.2,0.40818]
[1730732455407,40.8,2451.3,2451.2,0.40818]
[1730732455823,41.20817,2451.3,2451.2,0.40818]
[1730732456020,41.20817,2451.3,2451.0,1.1919]
[1730732456021,0.4082,2451.1,2451.0,0.616]
[1730732456317,0.4082,2451.1,2451.0,1.02422]
[1730732456722,0.40819,2451.2,2451.1,0.40819]
[1730732457024,40.8,2451.3,2451.0,0.616]
[1730732457218,0.4082,2451.1,2451.0,1.0242]
[1730732457411,40.8,2451.3,2451.0,1.0242]
[1730732457412,40.8,2451.3,2451.2,0.40818]
[1730732457812,0.40819,2451.2,2451.1,0.4082]
[1730732458122,41.20817,2451.3,2451.2,0.40818]
[1730732458312,44.0078,2451.3,2451.2,0.40818]
[1730732459316,44.41597,2451.3,2451.2,0.40818]
[1730732459526,44.0078,2451.3,2451.2,0.40818]
[1730732460124,3.2078,2451.3,2451.2,0.40818]
[1730732460326,1.65094964,2452.1,2451.2,4.27312342]
[1730732460514,1.65094964,2452.1,2451.0,4.53671967]
[1730732460515,0.40807,2451.9,2451.8,0.40807]
[1730732460820,40.8,2451.9,2451.8,0.40808]
[1730732461415,40.8,2451.9,2451.8,4.48648]
[1730732461611,1.05414964,2452.5,2451.8,4.0784]
[1730732461821,0.40797,2452.5,2452.4,0.40798]
[1730732462023,0.40799,2452.4,2452.0,4.22792]
[1730732462323,0.40804,2452.2,2452.1,0.40803]
[1730732462917,0.40801,2452.3,2452.2,0.40801]
[1730732464119,0.40801,2452.3,2451.9,3.2078]
[1730732464120,0.40802,2452.2,2452.1,0.40802]
[1730732464329,0.40805,2452.0,2451.9,3.61585]
[1730732464532,4.0784,2452.2,2451.6,0.6087]
[1730732464533,1.02005,2452.2,2451.6,0.6087]
[1730732464720,0.4081,2451.7,2451.6,1.01682]
[1730732465022,1.0201,2452.1,2451.6,3.8165]
[1730732465223,0.4081,2451.7,2451.6,3.2078]
[1730732465726,0.4081,2451.7,2451.3,0.5787]
[1730732466023,0.40815,2451.4,2451.3,3.2078]
[1730732466725,41.20815,2451.4,2451.3,3.2078]
[1730732467322,45.28735,2451.4,2451.3,3.2078]
[1730732467627,41.20815,2451.4,2451.3,3.61597]
[1730732467819,40.8,2451.4,2451.3,3.61597]
[1730732468621,3.2078,2451.9,2451.3,8.30741]
[1730732468925,4.97486931,2452.0,2451.6,0.4081]
[1730732468926,3.92071967,2452.0,2451.6,0.4081]
[1730732469126,40.8,2451.9,2451.4,1.1728]
[1730732469431,40.8,2451.9,2451.6,3.6159]
[1730732469432,0.4081,2451.7,2451.6,3.6159]
[1730732469626,40.8,2451.9,2451.5,3.2078]
[1730732469931,0.40811,2451.7,2451.6,0.4081]
[1730732470429,40.8,2451.9,2451.5,3.2078]
[1730732470732,40.8,2451.9,2451.6,3.2078]
[1730732470928,40.8,2451.9,2451.4,1.1728]
[1730732471321,0.40813,2451.6,2451.5,0.40813]
[1730732471619,45.02798,2451.9,2451.1,3.2078]
[1730732471620,1.02026,2451.7,2451.1,3.2078]
[1730732471824,0.40818,2451.3,2451.2,0.40817]
[1730732472023,0.40818,2451.2,2451.1,3.61599]
[1730732472235,1.02035,2451.5,2451.1,3.2078]
[1730732472529,0.40818,2451.2,2451.1,3.2078]
[1730732473234,0.40818,2451.2,2451.1,3.616]
[1730732473530,0.40815,2451.5,2451.4,0.40814]
[1730732473831,0.40816,2451.4,2451.3,0.40816]
[1730732474034,1.2114,2451.6,2451.2,0.5834]
[1730732474035,0.40814,2451.5,2451.4,0.40814]
[1730732474325,0.40812,2451.6,2451.5,0.40813]
[1730732474733,0.40811,2451.7,2451.6,0.4081]
[1730732474934,40.8,2451.9,2451.4,1.63367]
[1730732475231,0.40812,2451.6,2451.5,0.40812]
[1730732475431,0.40813,2451.5,2451.4,0.6133]
[1730732475933,3.2078,2451.7,2451.2,3.7912]
[1730732475934,0.40817,2451.3,2451.2,3.7912]
[1730732476228,0.6294,2451.6,2451.2,3.7912]
[1730732476732,0.6294,2451.6,2451.2,4.19937]
[1730732476733,0.40817,2451.3,2451.2,4.19937]
[1730732477426,0.6177,2451.5,2450.9,3.2078]
[1730732477624,3.2078,2451.7,2451.0,0.19386106]
[1730732477823,40.8,2451.9,2451.4,1.02038]
[1730732478022,0.40812,2451.7,2451.5,1.173]
[1730732478228,0.40812,2451.6,2451.5,0.5731]
[1730732478533,0.40815,2451.5,2451.4,0.40814]
[1730732478729,0.40815,2451.4,2451.3,3.2078]
[1730732479031,0.40815,2451.4,2451.3,3.61597]
[1730732479535,42.84035,2451.9,2451.3,3.2078]
[1730732479536,40.8,2451.9,2451.3,3.2078]
[1730732479723,3.2078,2452.1,2452.0,0.40805]